Cogmind - Beta 12 @@@ ROGUE MODE // 2023.05.03 @ 22:16:40 Player: MoonDog Result: Self-destructed Performance ------------- Evolutions (1) 500 Regions Visited (2) 400 Robots Destroyed (27) 135 Value Destroyed (644) 644 Prototype IDs (0) 0 Alien Tech Used (0) 0 Bonus (12) 12 TOTAL SCORE: 1691 Bonus ------- High Alert Combat Kills 54 Friendly Fire -42 Cogmind --------- Core Integrity 206/400 Matter 66/300 Energy 99/100 System Corruption 0% Temperature Cool (0) Movement Core (50) Location -9/Materials Parts ------- > --- POWER (1) -------- (None) > --- PROPULSION (2) --- Titanium Leg Titanium Leg > --- UTILITY (4) ------ Machine Analyzer Sensor Array Signal Interpreter > --- WEAPON (2) ------- Hammer > --- INVENTORY (5) ---- Titanium Leg Titanium Leg Medium Battery (150) Advanced Weight Redist. System Advanced Weight Redist. System Peak State ------------ > --- POWER ------------ (None) > --- PROPULSION ------- Titanium Leg Titanium Leg > --- UTILITY ---------- Small Storage Unit Machine Analyzer Sensor Array Signal Interpreter > --- WEAPON ----------- Mini Grenade Launcher Mini Grenade Launcher > --- INVENTORY -------- Titanium Leg Wheel Flight Unit Medium Battery Structural Scanner EM Shotgun Mini Grenade Launcher [Rating: 17] Favorites ----------- Power None Propulsion Wheel Leg Titanium Leg Wheel Wheel Flight Unit Flight Unit Utility Sensor Array Device Sensor Array Storage Small Storage Unit Processor Machine Analyzer Weapon Mini Grenade Launcher Ballistic Gun Light Assault Rifle Launcher Mini Grenade Launcher Impact Weapon Hammer Build | -11 -10 -9 ------- Run | Jun Mat Mat Slots Evolved 2 | . . 2 Power . | . . . Propulsion . | . . . Utility 2 | . . 2 Weapon . | . . . Parts Attached 17 | 4 4 9 Power . | . . . Engine . | . . . Core . | . . . Reactor . | . . . Propulsion 5 | 2 . 3 Treads . | . . . Leg 2 | . . 2 Wheel 2 | 2 . . Hover . | . . . Flight 1 | . . 1 Utility 6 | . 2 4 Device 1 | . 1 . Storage 1 | . . 1 Processor 4 | . 1 3 Hackware . | . . . Protection . | . . . Artifact . | . . . Weapon 6 | 2 2 2 Energy Gun . | . . . Energy Cannon . | . . . Ballistic Gun 2 | 2 . . Ballistic Cannon . | . . . Launcher 3 | . 2 1 Special Weapon . | . . . Impact Weapon 1 | . . 1 Slashing Weapon . | . . . Piercing Weapon . | . . . Special Melee Weapon . | . . . Unidentified Prototypes . | . . . Parts Lost . | . . . Power . | . . . Propulsion . | . . . Utility . | . . . Weapon . | . . . Highest Loss Streak . | . . . To Critical Strikes . | . . . Average Slot Usage (%) 81 | . 60 86 Leg 3 | . . 4 Wheel 17 | . 28 15 Flight 1 | . . 2 Device 9 | . 3 11 Storage 1 | . . 1 Processor 25 | . . 30 Launcher 21 | . 25 20 Naked Turns . | . . . Heaviest Build 8 | 2 3 8 Greatest Support 34 | 3 3 34 Greatest Overweight (x) 2 | . . 2 Average Overweight (x) . | . . . Largest Inventory Capacity 8 | 5 5 8 Average Capacity 5 | 5 5 5 Most Carried 8 | 3 5 8 Average Carried 4 | 1 4 4 Final Capacity 5 | 5 5 5 Final Carried 5 | 3 5 5 Class Distribution -------------------- 57% | Scout 18% | Mutant 13% | Scavenger-Scout 10% | Skirmisher Dominant Class ---------------- Mutant | -10/Materials Scout | -9/Materials Resources | -11 -10 -9 ----------- Run | Jun Mat Mat Matter Collected 678 | 218 174 286 Remotely . | . . . Salvage Created 350 | . 125 225 Parts 35 | . 14 21 Haulers Intercepted 1 | . 1 . Recyclers Shooed 1 | . . 1 Parts Field Recycled . | . . . Retrieved Matter . | . . . Parts Self-Destructed . | . . . Prevented . | . . . Kills | -11 -10 -9 ------- Run | Jun Mat Mat Combat Hostiles Destroyed 14 | . 3 11 AOE 14 | . 3 11 Classes Destroyed 9 | . 6 3 Worker 3 | . 1 2 Builder 1 | . . 1 Hauler 1 | . 1 . Mechanic 1 | . 1 . Operator 2 | . 1 1 Watcher 5 | . 1 4 Swarmer 6 | . . 6 Grunt 7 | . 3 4 Sentry 1 | . . 1 Best Kill Streak 5 | . 4 5 Combat Bots Only 4 | . 2 4 Max Kills in Single Turn 2 | . 2 2 Gunslinging . | . . . Exploded 2 | . 2 2 Melee . | . . . Uniques/NPCs Destroyed . | . . . Combat | -11 -10 -9 -------- Run | Jun Mat Mat Damage Taken 463 | . 12 451 Core 199 | . 5 194 Absorbed by Shields . | . . . Core Remaining (%) 99 | 100 98 . Volleys Fired 28 | . 7 21 Largest 2 | . 2 2 Hottest 60 | . 60 60 Shots Fired 56 | . 14 42 Gun 2 | . 2 . Cannon . | . . . Launcher 54 | . 12 42 Special . | . . . Kinetic 2 | . 2 . Thermal . | . . . Explosive 54 | . 12 42 Electromagnetic . | . . . Robot Hit Streak 11 | . 3 11 Robot Miss Streak 1 | . 1 1 Penetration Max . | . . . Secondary Targets . | . . . Shots Hit Robots 16 | . 4 12 Core Hits 38 | . 13 25 Critical Kills . | . . . Critical Parts Destroyed . | . . . Critical Strikes . | . . . Melee Attacks 3 | . . 3 Impact 3 | . . 3 Slashing . | . . . Piercing . | . . . Sneak Attacks 1 | . . 1 Combat Hostiles . | . . . Follow-up Attacks . | . . . Damage Inflicted 1981 | . 586 1395 Guns 7 | . 7 . Cannons . | . . . Explosions 1931 | . 579 1352 Melee 43 | . . 43 Ramming . | . . . Kinetic 7 | . 7 . Thermal . | . . . Explosive 1856 | . 579 1277 Electromagnetic 75 | . . 75 Impact 43 | . . 43 Slashing . | . . . Piercing . | . . . Highest Corruption . | . . . Average Corruption . | . . . Corruption Purged . | . . . Corruption Blocked . | . . . Overload Shots . | . . . Overflow Damage 59 | . 1 58 Projectiles . | . . . Explosions 26 | . 1 25 Melee 33 | . . 33 Knockbacks . | . . . Impact . | . . . Kinetic . | . . . Secondary . | . . . Self-Inflicted Damage 109 | . 12 97 Shots 6 | . 2 4 Rammed . | . . . Targets Rammed . | . . . Kicked . | . . . Crushed . | . . . Highest Temperature 2 | . . 2 Average Temperature 1 | . . 1 Received Heat Transfer 117 | . . 117 Siege Activations . | . . . Robots Corrupted . | . . . Combat Hostiles . | . . . Parts Fried 2 | . . 2 Impact Corruptions 2 | . . 2 Robots Melted . | . . . Combat Hostiles . | . . . Parts Melted . | . . . Heat Transferred . | . . . Parts Sabotaged . | . . . Parts Stolen . | . . . Parts Stripped . | . . . Power Chain Reactions 1 | . . 1 Missiles Intercepted . | . . . Alert | -11 -10 -9 ------- Run | Jun Mat Mat Peak Influence 759 | . 276 759 Initial 116 | . . 116 Average 355 | . 163 411 Maximum Alert Level 3 | . 1 3 Low Security (%) 31 | 100 47 24 Level 1 31 | . 52 29 Level 2 25 | . . 31 Level 3 11 | . . 14 Level 4 . | . . . Level 5 . | . . . High Security . | . . . Max Security . | . . . Squads Dispatched 2 | . 1 1 Investigation . | . . . Extermination . | . . . Reinforcement 2 | . 1 1 Assault . | . . . Garrison . | . . . Intercept . | . . . Searches Triggered . | . . . Construction Impeded . | . . . Haulers Reinforced . | . . . Active Scanning Responses . | . . . Cargo Convoy Interrupts . | . . . Stealth | -11 -10 -9 --------- Run | Jun Mat Mat Distress Signals 3 | . . 3 Communications Jammed . | . . . Distress Signals . | . . . Times Spotted 28 | . 5 23 Peak Tracking Total 8 | . 2 8 Tactical Retreats . | . . . Traps | -11 -10 -9 ------- Run | Jun Mat Mat Traps Triggered . | . . . Indirectly . | . . . Trap Hack Attempts . | . . . Triggered . | . . . Disarmed . | . . . Reprogrammed . | . . . Reused . | . . . Traps Extracted . | . . . Installed . | . . . Triggered . | . . . Machines | -11 -10 -9 ---------- Run | Jun Mat Mat Machines Disabled 14 | . 2 12 Max in Single Turn 6 | . 1 6 Machines Repaired . | . . . Machines Sabotaged . | . . . Overloaded Fab Kills . | . . . Hacking | -11 -10 -9 --------- Run | Jun Mat Mat Machines Accessed 10 | . 1 9 Terminals 10 | . 1 9 Fabricators . | . . . Repair Stations . | . . . Recycling Units . | . . . Scanalyzers . | . . . Garrison Access . | . . . Total Hacks 26 | . 2 24 Successful 17 | . 1 16 Failed 9 | . 1 8 Catastrophic . | . . . Database Lockouts . | . . . Manual 21 | . 2 19 Terminals 26 | . 2 24 Fabricators . | . . . Repair Stations . | . . . Recycling Units . | . . . Scanalyzers . | . . . Garrison Access . | . . . Terminal Hacks 4 | . . 4 Terminal Index 1 | . . 1 Registered Components 1 | . . 1 Zone Layout 2 | . . 2 Fabricator Hacks . | . . . Repair Station Hacks . | . . . Recycling Unit Hacks . | . . . Scanalyzer . | . . . Garrison Access Hacks . | . . . Unauthorized Hacks 13 | . 1 12 Terminals 13 | . 1 12 Track 2 | . . 2 Assimilate 4 | . . 4 Botnet 5 | . 1 4 Operators 2 | . . 2 Fabricators . | . . . Repair Stations . | . . . Recycling Units . | . . . Scanalyzers . | . . . Garrison Access . | . . . Data Cores Recovered . | . . . Used . | . . . Hacking Detections 9 | . 1 8 Full Trace Events . | . . . Feedback Events . | . . . Feedback Blocked . | . . . Robot Schematics Acquired . | . . . Robots Built . | . . . Authchips . | . . . Time . | . . . Total Robot Build Rating . | . . . Part Schematics Acquired . | . . . Parts Built . | . . . Authchips . | . . . Time . | . . . Total Part Build Rating . | . . . Parts Repaired . | . . . Time . | . . . Parts Recycled . | . . . Recycled Matter . | . . . Retrieved Matter . | . . . Retrieved Components . | . . . Parts Scanalyzed . | . . . Part Schematics Acquired . | . . . Parts Damaged . | . . . Bothacking | -11 -10 -9 ------------ Run | Jun Mat Mat Used RIF Installer . | . . . Robots Hacked . | . . . Non-combat . | . . . Combat . | . . . Robot Hacks Applied . | . . . Relay Couplers Released . | . . . Fabnet Peak Effective % . | . . . Robots Rewired . | . . . Allies Hacked . | . . . Hacks Repelled . | . . . Allies | -11 -10 -9 -------- Run | Jun Mat Mat Total Allies 2 | . . 2 Largest Group 1 | . . 1 Highest-Rated Group 10 | . . 10 Highest-Rated Ally 10 | . . 10 Total Orders . | . . . Ally Attacks . | . . . Total Damage . | . . . Kills . | . . . Allies Corrupted . | . . . Allies Melted . | . . . Intel | -11 -10 -9 ------- Run | Jun Mat Mat Robot Analysis Total . | . . . Derelict Logs Recovered . | . . . Drone Launches . | . . . Drone Recoveries . | . . . Exploration | -11 -10 -9 ------------- Run | Jun Mat Mat Turns Passed 683 | 26 109 548 Spaces Moved 900 | 34 145 721 Core 739 | 34 145 560 Treads . | . . . Legs 35 | . . 35 Wheels . | . . . Hover . | . . . Flight 126 | . . 126 Fastest Speed 45 | 50 50 45 Average Speed 52 | 50 50 53 Slowest Speed 150 | 50 50 150 Overloaded Moves . | . . . Propulsion Burnouts . | . . . Robots Hopped . | . . . Cave-ins Triggered . | . . . Exploration Rate (%) 33 | 3 30 66 Regions Visited 2 Branch Regions . Pre-discovered Areas . | . . . Known Exits Taken . | . . . Unknown Exits Taken 2 | 1 1 . Scrap Searched . | . . . Spaces Dug 44 | . . 44 Terrain Destroyed 312 | . 91 221 Melee 2 | . . 2 Projectile . | . . . AOE 310 | . 91 219 Terrain Rammed . | . . . Walls Destroyed . | . . . Machines Disabled . | . . . Actions | -11 -10 -9 --------- Run | Jun Mat Mat Total 1049 | 40 169 840 Wait 66 | . . 66 Move 898 | 33 144 721 Hop . | . . . Pick Up 16 | 3 6 7 Fast Attach 12 | 4 4 4 Attach 3 | . . 3 Detach 5 | . 2 3 Swap 2 | . . 2 Drop 16 | . 6 10 Fire 28 | . 7 21 Melee 3 | . . 3 Ram . | . . . Kick . | . . . Crush . | . . . Escape Stasis . | . . . Rewire . | . . . Trap . | . . . Miscellaneous . | . . . Route ------- -11/Junkyard -10/Materials -9/Materials (discovered 3 exits: *Mat x2 / [*Min]) History --------- Turn | Location | Event 9 | -11/Junkyard | Discovered new exit (range 16) 27 | -11/Junkyard | Entered Materials 132 | -10/Materials | Discovered new exit (range 5) 136 | -10/Materials | Entered another Materials area 136 | -9/Materials | Evolved 2 slots: Utility x2 420 | -9/Materials | Discovered new exit (range 18) 427 | -9/Materials | Build established: Scout 484 | -9/Materials | Discovered new exit (range 5) 485 | -9/Materials | Identified exit to Materials 671 | -9/Materials | Discovered exit to Materials (range 17) 684 | -9/Materials | Self-destructed Last Messages --------------- Terminal linked with 3 systems. Awaiting botnet instructions. 00663_ >> Machine Analyzer network decryption results: 00663_ Terminal x1 00666_ Sneak attack on O-16 Technician. 00666_ Destroyed Datajack. 00666_ Destroyed Hover Unit. 00666_ O-16 Technician system corrupted by crushing effect. 00667_ O-16 Technician system terminally corrupted. 00667_ Hacking Suite fried. 00667_ Hover Unit fried. 00667_ K-01 Serf cleans the Fusion Modulator. 00669_ Acquired 17 matter. 00670_ K-01 Serf collects debris. 00671_ Connecting with Terminal... 00671_ EXIT=FOUND: MATERIALS >>Layout(Zone) Retrieving Zone 3P layout... Downloaded map data. 00675_ K-01 Serf collects debris. Map ----- +----------------------------------------------------+ | ?????????????????##+#########???????? | | ?????????????#####^^ #??????????????? | | ?????????????+ ^ #??????????????? | | ?????????????# #??????????????? | | ?????????????# ^^##??????????????? | | ?????????????# #???????????????? | | ?????????????+ ^#??????T????????? | | ?????????????# ####??"""??????????? | | ?????????????# ??????"""??????????? | | ?????????????# ??????"""??????????? | | ?????????????# ???????????????????? | | ?????????????# #?????"""??????????? | | ????????????? #????"""??????????? | | ????"""?"""?# #????"""??????????? | | ????"""?"""?+ #?????????????????? | | ????"""?"""?# ??????????????????? | | ????????????# ??????????????????? | | ????????????## #??????????????????? | | ?????????????# #??????????????????? | | ?????????????# #??????????????????? | | ?????????????# #??????????????????? | | ?????????????# #??????????????????? | | ?????????????# #??????# """" ##? | | ?????????##### ######## """" ##? | | ?????????# a # """" ##? | | ?????????# <@ + #?? | | ?????????# a # ] #?? | | ????????#######+####### # #?? | | ????????# # ############? | | ????????# + ## #####? | | ????????#" ! """ """ # ## ? | | ????????#T """ """ # ## ? | | ????????#" """ """ # ## ? | | ????????# # ## #####? | | ????????## #######"####/### ##???#? | | ?????????###????# # #?????? | | ???????????###### """"" # #?????? | | ???????????# # ""T"" # ######? | | ???????????# # # # ? | | ???????????# + # # """ | | ???????????# # """ """ # # """ | | ???????????## ## """ """ # + """ | | ????????????# ## """ """ + # ? | | ????????##### ############ # ? | | #########"""# #??????????# ######? | | # ##"T"# ######?????# #?????? | | # !! " #?????# ####### | | #/!! # #?????# ## | | #/! ]]/ """ ##+######### ## | | # # """ # ### ### | +----------------------------------------------------+ Best States ------------- Heat Dissipation 28 Energy Generation 5 Energy Capacity 100 Matter Stores 300 Matter Capacity 300 Sight Range 18 Robot Scan Range 14 Terrain Scan Density 10 Evasion (%) 61 Item Schematics ----------------- None Robot Schematics ------------------ None Fabricated ------------ Nothing Alien Tech Used ----------------- None Achievements -------------- None Challenges ------------ None Game ------ Seed XenonClaymoresShredder Manual? 0 Play Time 00:17:48 Cumulative 122.5 hours Start 2023.05.03 @ 21:52:30 End 2023.05.03 @ 22:16:40 Sessions 2 Manual Loads 0 Difficulty Rogue Special Mode None Game No. 106 Rogue 106 Adventurer 0 Explorer 0 Win Type - Total 1 Types 1/0/0/0/0/0/0/0/0 Lore% 38 Gallery% 54 Achievement% 46 Wizard Run 0 Options --------- ASCII 0 Keyboard 0 Movement Numpad Keybinds 0 Fullscreen 1 Font 18/SmallcapsGlow Map View 76x50 Tactical HUD 1 Map Filters NONE Filters NONE Steam 1 RUN: 99d07f9f-2a30-4488-89a1-7cb2a398a3ae